Cogmind - Beta 14 *** ADVENTURER MODE // 2024.10.13 @ 09:06:33 // Winter2019/RPGLIKE Player: Gallgagger Result: Destroyed by P-80 Master with Gamma Rifle Performance ------------- Evolutions (9) 4500 Regions Visited (25) 5000 Robots Destroyed (741) 3705 Value Destroyed (42872) 42872 Prototype IDs (48) 960 Alien Tech Used (8) 1600 Bonus (36217) 36217 TOTAL SCORE: 94854 Bonus ------- Triggered High Security 500 Triggered Max Security 3000 High Alert Combat Kills 21711 Follower Combat Kills 4259 Entered Garrisons 200 Used RIF Installer 500 Registered with UFD 300 Met Data Miner 300 Met Zhirov 300 Built Enhanced Grunts 300 Met R17 at Cetus 500 Met R17 at Research 2000 Scanned by Researcher 500 Met Sigix 2000 Activated Exoskeleton 3000 Friendly Fire -3153 Cogmind --------- Core Integrity 0/2700 Matter 300/300 Energy 401/1600 System Corruption 7% Temperature Cool (0) Movement Walking (176) Ox1 Location -1/Command Parts ------- > --- POWER (3) -------- Improved Quantum Reactor Improved Quantum Reactor Improved Quantum Reactor (fused) > --- PROPULSION (5) --- Enhanced Biometal Leg Enhanced Biometal Leg High-density Centrium Leg > --- UTILITY (9) ------ Improved Cooling System Experimental Core Analyzer Centrium Heavy Armor Plating Improved Remote Force Field Advanced Dynamic Insulation System Spacefold Activator > --- WEAPON (7) ------- PD Laser Powered Cannon > --- INVENTORY (5) ---- Long-range Terrain Scanner Advanced System Restoration Module CPS Tube (1) Peak State ------------ > --- POWER ------------ Improved Quantum Reactor Improved Quantum Reactor Improved Quantum Reactor > --- PROPULSION ------- Enhanced Biometal Leg Enhanced Biometal Leg Enhanced Biometal Leg Enhanced Biometal Leg High-density Centrium Leg > --- UTILITY ---------- Improved Cooling System Long-range Terrain Scanner Experimental Core Analyzer Advanced Particle Charger Reaction Control System Centrium Heavy Armor Plating Improved Remote Force Field Advanced Dynamic Insulation System > --- WEAPON ----------- PD Laser Powered Cannon Sigix Terminator > --- INVENTORY -------- Advanced System Restoration Module Spacefold Activator CPS Tube [Rating: 206] Favorites ----------- Power Quantum Reactor Engine Subdweller Power Source Power Core Cooled Fission Core Reactor Quantum Reactor Propulsion Enhanced Biometal Leg Leg Enhanced Biometal Leg Wheel Compact Wheel Utility Particle Charger Device Particle Charger Storage Improved Energy Well Processor Experimental Core Analyzer Hackware Authchip [R/Combat] Protection Layered Heavy Armor Plating Artifact Spacefold Activator Weapon Powered Cannon Energy Gun PD Laser Energy Cannon Powered Cannon Ballistic Gun Light Assault Rifle Ballistic Cannon Light Cannon Launcher Sigix Terminator Special Weapon CPS Tube Special Melee Weapon Datajack Build | -11 -10 -10 -10 -9 -9 -6 -6 -6 -6 -5 -5 -5 -5 -5 -4 -4 -4 -4 -3 -3 -3 -3 -2 -1 -1 ------- Run | Yrd Mat Min Sub Rec Scr Fac Low Low Dat Pro Fac Gar Ext Cet Fac Upp Upp Zhi Pro Res Qua Sec Res Acc Com Slots Evolved 20 | 4 1 1 . 1 2 2 . . . . 3 . . . 2 . . . . 1 1 . . 2 . Power 2 | 1 . . . . . . . . . . 1 . . . . . . . . . . . . . . Propulsion 4 | 1 . . . . 1 . . . . . . . . . 1 . . . . . . . . 1 . Utility 8 | 1 1 1 . 1 . 1 . . . . 1 . . . . . . . . 1 . . . 1 . Weapon 6 | 1 . . . . 1 1 . . . . 1 . . . 1 . . . . . 1 . . . . Parts Attached 104 | 6 6 5 3 3 2 16 . . . 2 8 . . 3 8 1 . 1 . 18 9 9 . 3 1 Power 18 | 2 . 1 1 . . 2 . . . . 2 . . 3 2 . . . . 3 . 1 . 1 . Engine 5 | 2 . 1 1 . . . . . . . 1 . . . . . . . . . . . . . . Core 3 | . . . . . . 2 . . . . 1 . . . . . . . . . . . . . . Reactor 10 | . . . . . . . . . . . . . . 3 2 . . . . 3 . 1 . 1 . Propulsion 17 | 2 . . . . . 4 . . . . 1 . . . 2 . . . . 3 2 2 . 1 . Treads . | . . . . . . . . . . . . . . . . . . . . . . . . . . Leg 14 | . . . . . . 3 . . . . 1 . . . 2 . . . . 3 2 2 . 1 . Wheel 3 | 2 . . . . . 1 . . . . . . . . . . . . . . . . . . . Hover . | . . . . . . . . . . . . . . . . . . . . . . . . . . Flight . | . . . . . . . . . . . . . . . . . . . . . . . . . . Utility 52 | . 3 3 . 3 . 9 . . . 2 3 . . . 3 1 . 1 . 10 6 6 . 1 1 Device 34 | . 2 3 . . . 5 . . . 1 2 . . . 2 1 . 1 . 8 3 5 . 1 . Storage 1 | . . . . . . . . . . . 1 . . . . . . . . . . . . . . Processor 2 | . . . . . . . . . . . . . . . . . . . . 2 . . . . . Hackware 3 | . . . . . . 3 . . . . . . . . . . . . . . . . . . . Protection 10 | . 1 . . 3 . 1 . . . 1 . . . . 1 . . . . . 3 . . . . Artifact 2 | . . . . . . . . . . . . . . . . . . . . . . 1 . . 1 Weapon 17 | 2 3 1 2 . 2 1 . . . . 2 . . . 1 . . . . 2 1 . . . . Energy Gun 3 | 2 . . . . . . . . . . 1 . . . . . . . . . . . . . . Energy Cannon 2 | . . . 1 . . 1 . . . . . . . . . . . . . . . . . . . Ballistic Gun 3 | . 2 . 1 . . . . . . . . . . . . . . . . . . . . . . Ballistic Cannon 2 | . 1 1 . . . . . . . . . . . . . . . . . . . . . . . Launcher 1 | . . . . . . . . . . . . . . . . . . . . . 1 . . . . Special Weapon 5 | . . . . . 1 . . . . . 1 . . . 1 . . . . 2 . . . . . Impact Weapon . | . . . . . . . . . . . . . . . . . . . . . . . . . . Slashing Weapon . | . . . . . . . . . . . . . . . . . . . . . . . . . . Piercing Weapon . | . . . . . . . . . . . . . . . . . . . . . . . . . . Special Melee Weapon 1 | . . . . . 1 . . . . . . . . . . . . . . . . . . . . Unidentified Prototypes 25 | . . . 1 . . 4 . . . . 1 . . . 1 1 . 1 . 4 6 6 . . . Parts Lost 5 | . . 1 . . . . . . . . 2 . . . . . . . . . . . . . 2 Power . | . . . . . . . . . . . . . . . . . . . . . . . . . . Propulsion . | . . . . . . . . . . . . . . . . . . . . . . . . . . Utility 3 | . . 1 . . . . . . . . . . . . . . . . . . . . . . 2 Weapon 2 | . . . . . . . . . . . 2 . . . . . . . . . . . . . . Highest Loss Streak 1 | . . 1 . . . . . . . . 1 . . . . . . . . . . . . . 1 To Critical Strikes . | . . . . . . . . . . . . . . . . . . . . . . . . . . Average Slot Usage (%) 84 | . 97 99 91 90 85 88 87 87 87 87 79 77 77 77 76 74 75 75 75 78 77 76 77 77 70 Engine 9 | . 23 20 25 25 21 16 6 6 6 6 3 . . . . . . . . . . . . . . Core 3 | . . . . . . 3 12 12 12 12 13 16 16 7 . . . . . . . . . . . Reactor 4 | . . . . . . . . . . . . . . 8 15 15 15 15 15 14 13 13 13 12 12 Leg 11 | . . . . . . 5 18 18 18 18 16 16 16 16 19 20 20 20 20 19 18 18 18 18 16 Wheel 6 | . 23 20 18 16 14 12 . . . . . . . . . . . . . . . . . . . Device 25 | . 20 30 36 26 21 23 25 25 25 25 26 27 27 27 25 24 25 25 25 24 22 21 22 22 19 Protection 6 | . 6 5 . 13 14 11 6 6 6 6 5 5 5 5 5 5 5 5 5 4 4 4 4 4 4 Energy Gun 2 | . 1 . . . . . . . . . 3 5 5 5 5 5 5 5 5 4 4 4 4 4 4 Energy Cannon 6 | . . . 7 8 7 8 12 12 12 12 7 5 5 5 5 5 5 5 5 4 4 4 4 4 4 Ballistic Cannon 1 | . 9 14 2 . . . . . . . . . . . . . . . . . . . . . . Special Weapon 2 | . . . . . . 6 6 6 6 6 1 . . . . . . . . 2 . . . . . Peak Build Rating 206 | 6 9 16 30 33 36 95 95 95 95 97 121 119 119 126 136 135 135 135 135 155 189 200 188 206 206 Average Rating 92 | 4 8 13 27 31 34 54 95 95 95 96 110 119 119 122 132 134 135 134 135 141 175 188 188 192 184 On Entrance 103 | . 6 9 16 30 33 36 95 95 95 95 96 119 119 119 126 135 135 135 135 135 150 189 188 188 206 Naked Turns . | . . . . . . . . . . . . . . . . . . . . . . . . . . Heaviest Build 144 | 12 17 24 32 35 36 77 77 77 77 77 87 87 87 105 111 110 110 110 110 113 132 132 129 144 141 Greatest Support 162 | 32 32 32 32 37 37 107 107 107 107 107 107 107 107 107 132 130 130 130 130 142 132 132 132 162 162 Greatest Overweight (x) 1 | . . . . . . 1 . . . . . . . . . . . . . 1 . . . . 1 Average Overweight (x) . | . . . . . . . . . . . . . . . . . . . . . . . . . . Largest Inventory Capacity 5 | . 1 1 1 2 3 4 4 4 4 4 5 5 5 5 5 5 5 5 5 5 5 5 5 5 5 Average Capacity 3 | . . 1 1 1 2 3 4 4 4 4 4 5 5 5 5 5 5 5 5 5 5 5 5 5 5 Most Carried 5 | . 1 1 1 2 3 4 4 4 4 4 5 5 5 5 5 5 5 5 5 5 5 5 3 3 3 Average Carried 3 | . . 1 1 1 2 3 4 4 4 4 4 5 5 5 4 5 5 5 5 4 4 4 3 3 3 Final Capacity 5 | . 1 1 1 2 3 4 4 4 4 4 5 5 5 5 5 5 5 5 5 5 5 5 5 5 5 Final Carried 5 | . 1 1 1 2 3 4 4 4 4 4 5 5 5 5 5 5 5 5 5 4 5 3 3 3 3 Class Distribution -------------------- 31% | Wizard-Executioner 23% | Hacker-Tank 13% | Hacker-Skirmisher 7% | Hacker-Gunner 7% | Hacker-Mutant 5% | Commander-Tank 4% | Commander-Assassin 3% | Commander-Gunner 3% | Commander-Skirmisher Dominant Class ---------------- Hacker-Mutant | -10/Materials Hacker-Mutant | -10/Mines Hacker-Skirmisher | -10/Subcaves Hacker-Skirmisher | -9/Recycling Commander-Assassin | -9/Scraptown Hacker-Tank | -6/Factory Hacker-Tank | -6/Lower Caves Hacker-Tank | -6/Lower Caves Hacker-Tank | -6/Data Miner Hacker-Tank | -5/Proximity Caves Hacker-Gunner | -5/Factory Hacker-Gunner | -5/Garrison Hacker-Gunner | -5/Extension Commander-Gunner | -5/Cetus Wizard-Executioner | -4/Factory Wizard-Executioner | -4/Upper Caves Wizard-Executioner | -4/Upper Caves Wizard-Executioner | -4/Zhirov Wizard-Executioner | -3/Proximity Caves Wizard-Executioner | -3/Research Wizard-Executioner | -3/Quarantine Wizard-Executioner | -3/Section 7 Wizard-Executioner | -2/Research Wizard-Executioner | -1/Access Wizard-Executioner | -1/Command Resources | -11 -10 -10 -10 -9 -9 -6 -6 -6 -6 -5 -5 -5 -5 -5 -4 -4 -4 -4 -3 -3 -3 -3 -2 -1 -1 ----------- Run | Yrd Mat Min Sub Rec Scr Fac Low Low Dat Pro Fac Gar Ext Cet Fac Upp Upp Zhi Pro Res Qua Sec Res Acc Com Matter Collected 2421 | 203 507 331 153 30 10 237 22 28 . 48 151 28 35 40 80 20 . . 20 180 90 168 . 30 10 Remotely 991 | . 507 331 153 . . . . . . . . . . . . . . . . . . . . . . Salvage Created 35973 | . 890 291 470 993 . 3573 495 711 . 1246 4383 268 1006 348 4426 1050 500 . 1501 2434 1494 2630 204 3237 3823 Parts 1970 | . 73 12 44 38 . 162 13 40 . 55 238 9 65 16 216 43 46 . 70 139 95 162 22 174 238 Haulers Intercepted 10 | . 2 . . . . 3 . . . . 1 . . . 3 . . . . 1 . . . . . Recyclers Shooed 4 | . . . . . . 1 . . . . 2 . . . . . . . . . . . . . 1 Parts Field Recycled . | . . . . . . . . . . . . . . . . . . . . . . . . . . Retrieved Matter . | . . . . . . . . . . . . . . . . . . . . . . . . . . Parts Self-Destructed 296 | . . . 11 . . . 22 39 . 65 . . . . . 43 46 . 70 . . . . . . Prevented 14 | . . . . . . . 7 7 . . . . . . . . . . . . . . . . . Kills | -11 -10 -10 -10 -9 -9 -6 -6 -6 -6 -5 -5 -5 -5 -5 -4 -4 -4 -4 -3 -3 -3 -3 -2 -1 -1 ------- Run | Yrd Mat Min Sub Rec Scr Fac Low Low Dat Pro Fac Gar Ext Cet Fac Upp Upp Zhi Pro Res Qua Sec Res Acc Com Combat Hostiles Destroyed 732 | . 32 23 18 7 . 52 6 10 . 27 75 3 16 5 65 23 18 . 29 41 26 46 6 52 152 Guns 263 | . 9 5 1 . . . . . . . 20 3 6 3 40 16 10 . 15 23 16 24 3 28 41 Cannons 319 | . 23 18 17 5 . 40 6 10 . 24 45 . 8 1 18 6 8 . 12 12 9 19 3 18 17 AOE 89 | . . . . . . . . . . . 1 . . . . . . . . . . . . . 88 Classes Destroyed 33 | . 5 2 2 2 . 7 1 . . 1 . . . . 4 . . . . 3 4 . . . 2 Worker 10 | . . . . . . 4 . . . . 1 . . . 1 . . . . . . . . 2 2 Builder 4 | . . . . 1 . . . . . . . . . . . . . . . . 2 1 . . . Tunneler 1 | . . . . . . 1 . . . . . . . . . . . . . . . . . . . Hauler 12 | . 2 . . . . 3 . . . . 1 . . . 3 . . . . 3 . . . . . Recycler 16 | . 1 . . 6 . 3 . . . . 4 . . . 1 . . . . 1 . . . . . Carrier 9 | . . . . . . . . . . . . . . . . . . . . . . . . . 9 Minesweeper 2 | . . . . . . . 1 . . 1 . . . . . . . . . . . . . . . Mechanic 1 | . . . . . . . . . . . . . . . . . . . . 1 . . . . . Operator 7 | . . . . . . 1 . . . . 1 . . . 1 . . . . . 1 1 . . 2 Drone 3 | . . . . . . . . . . . . . . . 1 . . . 2 . . . . . . Watcher 31 | . 3 . . . . 3 . . . . 7 . 2 2 3 . . . . 2 1 1 1 3 3 Swarmer 104 | . 6 3 4 . . 2 2 1 . 9 8 2 . . 4 10 11 . 10 7 . . 2 10 13 Cutter 3 | . . . . . . . . . . . . . . . . . . . . . . . . . 3 Saboteur 14 | . . . . . . . . . . . . . . . 1 . . . . . . 7 . 1 5 Grunt 266 | . 26 4 . . . 28 3 5 . 10 37 1 4 . 25 6 4 . 9 8 12 10 . 17 57 Brawler 21 | . . . . 1 . 2 . 1 . 1 . . . . 2 . . . 4 . . 2 . 3 5 Duelist 24 | . . . . . . . . . . 3 . . . . 2 . . . 2 . 1 3 . 5 8 Protector 7 | . . . . . . . . . . . . . . . 2 . . . 1 . 1 1 . 1 1 Researcher 2 | . . . . . . . . . . . . . . . . . . . . . 1 1 . . . Sentry 60 | . . . 1 6 . 6 1 . . 1 6 . 9 . 3 3 1 . 1 2 4 6 4 3 3 Demolisher 5 | . . 1 . . . . . . . . . . . . 1 . . . . 2 . . . . 1 Specialist 15 | . . . . . . 2 . . . . 2 . . . 2 . . . . . . . . . 9 Hunter 59 | . . . . . . 2 . 4 . 1 14 . 1 . 8 2 . . . 7 2 4 . 3 11 Programmer 82 | . . . . . . 9 . . . 1 8 . . . 12 2 2 . . 4 2 7 . 5 30 Heavy 2 | . . . . . . . . . . . . . . . 1 . . . . . . . . . 1 Q-Series 2 | . . . . . . . . . . . . . . . . . . . . . 2 . . . . Behemoth 9 | . . . . . . 1 . . . 1 . . 2 . 1 . . . . 2 . . . 1 1 Cetus Guard 5 | . . . . . . . . . . . . . . 5 . . . . . . . . . . . S7 Guard 1 | . . . . . . . . . . . . . . . . . . . . . . 1 . . . Striker 8 | . . . . . . . . . . . . . . . . . . . . 6 . . . 1 1 Executioner 10 | . . . . . . . . . . . . . . . . . . . . 3 . 3 . 2 2 Alpha 7 4 | . . . . . . . . . . . . . . . . . . . . . 1 2 . . 1 Fortress 1 | . . . . . . . . . . . . . . . . . . . . . 1 . . . . Subdweller 13 | . . . 13 . . . . . . . . . . . . . . . . . . . . . . Assembled 15 | . . 15 . . . . . . . . . . . . . . . . . . . . . . . Thug 1 | . . . . . . . . . . . . . . . 1 . . . . . . . . . . Best Kill Streak 122 | . 4 4 3 4 . 6 2 5 . 9 9 1 4 4 7 11 7 . 9 7 8 15 7 13 122 Combat Bots Only 112 | . 3 4 3 4 . 6 2 5 . 9 7 1 4 3 7 11 7 . 9 7 8 15 4 11 112 Max Kills in Single Turn 97 | . 1 1 1 1 . 1 1 1 . 1 2 1 1 1 2 2 2 . 2 2 2 2 1 2 97 Gunslinging . | . . . . . . . . . . . . . . . . . . . . . . . . . . Exploded 88 | . . . . . . . . . . . 1 . . . . . . . . . . . . . 88 Melee . | . . . . . . . . . . . . . . . . . . . . . . . . . . Uniques/NPCs Destroyed . | . . . . . . . . . . . . . . . . . . . . . . . . . . Combat | -11 -10 -10 -10 -9 -9 -6 -6 -6 -6 -5 -5 -5 -5 -5 -4 -4 -4 -4 -3 -3 -3 -3 -2 -1 -1 -------- Run | Yrd Mat Min Sub Rec Scr Fac Low Low Dat Pro Fac Gar Ext Cet Fac Upp Upp Zhi Pro Res Qua Sec Res Acc Com Hostile Shots Fired 2502 | . 93 63 46 17 . 279 16 36 . 90 286 . 16 22 200 77 38 . 47 122 94 168 11 60 721 Missed 972 | . 29 12 10 2 . 104 2 15 . 30 87 . 7 9 103 34 12 . 20 48 35 69 3 25 316 Damage Taken 20164 | . 571 766 550 152 . 1501 225 189 . 464 2505 . 102 275 1178 511 316 . 417 1312 1382 1462 119 666 5501 Core 13286 | . 437 555 445 117 . 1027 155 130 . 271 1569 . 67 165 699 308 178 . 251 835 949 976 90 504 3558 Absorbed by Shields 2245 | . . . . . . 115 . 19 . 297 . . 38 10 . . . . . . . . . 65 1701 Redirected to Core 11532 | . 317 431 346 87 . 822 133 103 . 245 1393 . 67 165 618 297 178 . 251 746 864 830 75 322 3242 Redirected to Shielding 44 | . . . . . . 44 . . . . . . . . . . . . . . . . . . . Ignored by Resistances 10594 | . 173 234 233 72 . 742 101 99 . 348 1137 . 66 130 529 238 140 . 196 599 727 737 69 329 3695 Regen/Repaired (Parts) 214 | . . . . . . . . . . . . . . . . . . . . . . 214 . . . Core Remaining (%) 95 | 100 . . . . 100 . . . . 93 . . . 100 . . . . 98 . . 80 100 . . Volleys Fired 1241 | . 87 55 63 37 . 184 22 22 . 58 158 19 21 7 92 22 16 . 26 70 57 82 8 62 73 Largest 3 | . 2 2 2 1 . 2 1 1 . 2 3 1 1 1 2 1 1 . 1 2 1 1 1 1 1 Hottest 130 | . 55 70 70 40 . 40 40 40 . 130 130 40 40 40 40 40 40 . 120 40 40 40 40 40 40 Shots Fired 2044 | . 171 110 79 37 . 184 22 24 . 60 217 22 39 16 191 58 31 . 53 130 124 153 17 126 180 Gun 788 | . 98 53 5 . . . . . . . 52 3 17 10 98 36 15 . 27 59 67 70 9 64 105 Cannon 1250 | . 73 57 74 37 . 183 22 24 . 60 164 19 22 6 92 22 16 . 26 69 57 83 8 62 74 Launcher 1 | . . . . . . . . . . . . . . . . . . . . . . . . . 1 Special 5 | . . . . . . 1 . . . . 1 . . . 1 . . . . 2 . . . . . Kinetic 313 | . 171 110 32 . . . . . . . . . . . . . . . . . . . . . . Thermal 1726 | . . . 47 37 . 183 22 24 . 60 216 22 39 16 190 58 31 . 53 128 124 153 17 126 180 Explosive . | . . . . . . . . . . . . . . . . . . . . . . . . . . Electromagnetic . | . . . . . . . . . . . . . . . . . . . . . . . . . . Robot Hit Streak 41 | . 20 21 21 23 . 21 11 9 . 12 32 25 28 17 23 41 21 . 35 31 31 33 17 26 24 Robot Miss Streak 4 | . 2 4 1 2 . 3 1 1 . 1 2 1 3 4 4 4 1 . 2 3 2 3 2 2 4 Penetration Max . | . . . . . . . . . . . . . . . . . . . . . . . . . . Secondary Targets . | . . . . . . . . . . . . . . . . . . . . . . . . . . Autonomous 645 | . . . . . . . . . . . 54 3 17 10 98 36 15 . 27 59 67 70 9 64 116 Shots Hit Robots 1736 | . 141 78 56 30 . 158 18 19 . 53 187 10 35 16 166 50 28 . 52 104 112 133 14 113 163 Core Hits 1115 | . 65 47 19 11 . 53 8 10 . 26 103 6 25 15 112 32 22 . 36 64 90 85 11 86 189 Critical Kills 67 | . . . . 2 . 13 . . . 4 9 . 2 1 10 1 . . 2 7 1 3 . 6 6 Critical Parts Destroyed . | . . . . . . . . . . . . . . . . . . . . . . . . . . Critical Strikes 72 | . 3 1 1 2 . 13 . . . 4 9 . 2 1 10 1 . . 2 7 1 3 . 6 6 Meltdown 67 | . . . . 2 . 13 . . . 4 9 . 2 1 10 1 . . 2 7 1 3 . 6 6 Blast 5 | . 3 1 1 . . . . . . . . . . . . . . . . . . . . . . Melee Attacks . | . . . . . . . . . . . . . . . . . . . . . . . . . . Impact . | . . . . . . . . . . . . . . . . . . . . . . . . . . Slashing . | . . . . . . . . . . . . . . . . . . . . . . . . . . Piercing . | . . . . . . . . . . . . . . . . . . . . . . . . . . Sneak Attacks . | . . . . . . . . . . . . . . . . . . . . . . . . . . Combat Hostiles . | . . . . . . . . . . . . . . . . . . . . . . . . . . Follow-up Attacks . | . . . . . . . . . . . . . . . . . . . . . . . . . . Damage Inflicted 229409 | . 1804 997 2005 1520 . 9461 1054 1198 . 3121 12829 781 2832 1284 14172 4239 2169 . 4737 9323 7924 11506 1075 9829 125549 Guns 57113 | . 652 321 59 . . . . . . . 4034 278 1528 860 8757 3087 1201 . 2674 5624 5576 6419 691 5989 9363 Cannons 60366 | . 1152 676 1946 1520 . 9461 1054 1198 . 3121 8700 503 1304 424 5415 1152 968 . 2063 3699 2309 5087 384 3840 4390 Explosions 111922 | . . . . . . . . . . . 87 . . . . . . . . . 39 . . . 111796 Melee . | . . . . . . . . . . . . . . . . . . . . . . . . . . Ramming 8 | . . . . . . . . . . . 8 . . . . . . . . . . . . . . Kinetic 3213 | . 1804 997 412 . . . . . . . . . . . . . . . . . . . . . . Thermal 226149 | . . . 1593 1520 . 9461 1054 1198 . 3121 12821 781 2832 1284 14172 4239 2169 . 4737 9323 7885 11506 1075 9829 125549 Explosive 39 | . . . . . . . . . . . . . . . . . . . . . 39 . . . . Electromagnetic . | . . . . . . . . . . . . . . . . . . . . . . . . . . Impact . | . . . . . . . . . . . . . . . . . . . . . . . . . . Slashing . | . . . . . . . . . . . . . . . . . . . . . . . . . . Piercing . | . . . . . . . . . . . . . . . . . . . . . . . . . . Highest Corruption 6 | . . . . . . 1 3 3 3 3 4 4 4 4 . . . . . 2 1 1 . 1 6 Average Corruption 2 | . . . . . . 1 2 3 3 3 3 4 4 4 . . . . . 1 1 1 . 1 1 Corruption Purged 2 | . . . . . . . . . . . . . . . . . . . . 2 . . . . . Corruption Blocked . | . . . . . . . . . . . . . . . . . . . . . . . . . . Effects 191 | . . . . . . 29 14 24 1 20 44 13 11 5 . . . . . 2 3 10 . 4 11 Message Errors 51 | . . . . . . 7 7 9 . 9 8 2 2 . . . . . . . 1 2 . 2 2 Matter Fused 41 | . . . . . . 9 3 4 1 5 10 3 2 1 . . . . . . . 2 . . 1 Heat Flow Errors 26 | . . . . . . 6 1 3 . . 6 4 1 2 . . . . . 1 . . . 1 1 Energy Discharges 31 | . . . . . . 4 2 2 . 3 8 2 3 1 . . . . . . 1 3 . 1 1 Parts Rejected 1 | . . . . . . . . . . . . . . . . . . . . . . . . . 1 Parts Fused 2 | . . . . . . . . . . . 1 . . . . . . . . . . . . . 1 Data Loss (minor) 17 | . . . . . . 1 1 3 . . 5 2 2 . . . . . . . 1 1 . . 1 Data Loss (major) 6 | . . . . . . . . . . 2 1 . . . . . . . . 1 . 1 . . 1 Misfires 9 | . . . . . . . . 2 . . 3 . 1 . . . . . . . . 1 . . 2 Alerts 5 | . . . . . . 1 . 1 . 1 2 . . . . . . . . . . . . . . Weapon Failures 2 | . . . . . . 1 . . . . . . . 1 . . . . . . . . . . . Overload Shots 1 | . . . . . . . . . . . . . . . . . . . 1 . . . . . . Overflow Damage 16161 | . 2 4 110 233 . 819 44 98 . 225 489 . 67 . 529 50 40 . 203 270 137 430 . 263 12148 Projectiles 4372 | . 2 4 110 233 . 819 44 98 . 225 489 . 67 . 529 50 40 . 203 270 137 430 . 263 359 Explosions 11789 | . . . . . . . . . . . . . . . . . . . . . . . . . 11789 Melee . | . . . . . . . . . . . . . . . . . . . . . . . . . . Knockbacks 24 | . 13 7 4 . . . . . . . . . . . . . . . . . . . . . . Impact . | . . . . . . . . . . . . . . . . . . . . . . . . . . Kinetic 21 | . 10 7 4 . . . . . . . . . . . . . . . . . . . . . . Secondary 3 | . 3 . . . . . . . . . . . . . . . . . . . . . . . . Self-Inflicted Damage 837 | . . . . . . . . . . . . . . . . . . . . . 151 . . . 686 Shots 5 | . . . . . . . . . . . . . . . . . . . . . 4 . . . 1 Rammed . | . . . . . . . . . . . . . . . . . . . . . . . . . . Targets Rammed 1 | . . . . . . . . . . . 1 . . . . . . . . . . . . . . Kicked 1 | . . . . . . . . . . . 1 . . . . . . . . . . . . . . Crushed . | . . . . . . . . . . . . . . . . . . . . . . . . . . Highest Temperature 321 | . 43 62 2 35 . 223 120 125 . 91 297 216 75 99 312 218 184 . 255 321 5 72 44 92 109 Average Temperature 54 | . 11 12 2 15 . 39 63 54 . 52 62 102 29 47 85 97 76 . 95 90 5 24 44 47 56 Received Heat Transfer 4073 | . 393 129 126 63 . 835 54 54 . 241 807 . 26 54 159 63 30 . 96 195 225 220 9 56 238 Effects 1 | . . . . . . . . . . . . . . . . . . . . 1 . . . . . Shutdowns 1 | . . . . . . . . . . . . . . . . . . . . 1 . . . . . Siege Activations . | . . . . . . . . . . . . . . . . . . . . . . . . . . Robots Corrupted . | . . . . . . . . . . . . . . . . . . . . . . . . . . Combat Hostiles . | . . . . . . . . . . . . . . . . . . . . . . . . . . Parts Fried . | . . . . . . . . . . . . . . . . . . . . . . . . . . Impact Corruptions . | . . . . . . . . . . . . . . . . . . . . . . . . . . Robots Melted 67 | . . . . 2 . 13 . . . 4 9 . 2 1 10 1 . . 2 7 1 3 . 6 6 Combat Hostiles 61 | . . . . 2 . 12 . . . 3 9 . 2 1 7 1 . . 2 6 1 3 . 6 6 Parts Melted 154 | . . . . 5 . 24 . . . 3 23 . 7 2 15 2 1 . 2 16 1 9 . 21 23 Heat Transferred 33123 | . . . . . . . . . . . 2612 175 962 550 5166 1750 700 . 1447 3125 3488 3945 400 3525 5278 Parts Sabotaged 4 | . . . . . . . . . . . 2 . . . 2 . . . . . . . . . . Parts Stolen . | . . . . . . . . . . . . . . . . . . . . . . . . . . Parts Stripped . | . . . . . . . . . . . . . . . . . . . . . . . . . . Power Chain Reactions . | . . . . . . . . . . . . . . . . . . . . . . . . . . Alert | -11 -10 -10 -10 -9 -9 -6 -6 -6 -6 -5 -5 -5 -5 -5 -4 -4 -4 -4 -3 -3 -3 -3 -2 -1 -1 ------- Run | Yrd Mat Min Sub Rec Scr Fac Low Low Dat Pro Fac Gar Ext Cet Fac Upp Upp Zhi Pro Res Qua Sec Res Acc Com Peak Influence 4108 | . 582 391 . 188 . 349 . . . . 1103 784 835 587 1065 . . . . 852 826 2824 1883 4108 3206 Initial 2310 | . . 191 . . . . . . . . 187 459 356 285 286 . . . . 123 319 256 1383 1100 2310 Average 459 | . 226 114 . 44 . 117 . . . . 521 629 602 516 552 . . . . 457 583 828 1719 2866 2621 Maximum Alert Level 5 | . 2 1 . . . 1 . . . . 4 3 3 2 3 . . . . 3 3 5 5 5 5 Low Security (%) 38 | 100 55 64 . 100 . 85 . . . . 5 . . . 5 . . . . 12 . 13 . . . Level 1 17 | . 22 35 . . . 14 . . . . 25 . 12 9 20 . . . . 19 27 17 . . . Level 2 28 | . 21 . . . . . . . . . 53 97 58 90 46 . . . . 58 42 39 . . . Level 3 7 | . . . . . . . . . . . 13 2 28 . 27 . . . . 8 30 . . . . Level 4 . | . . . . . . . . . . . 2 . . . . . . . . . . . 7 2 . Level 5 2 | . . . . . . . . . . . . . . . . . . . . . . . . . 89 High Security . | . . . . . . . . . . . . . . . . . . . . . . . . . 10 Max Security 4 | . . . . . . . . . . . . . . . . . . . . . . 29 92 97 . Squads Dispatched 157 | . 10 . . . . 20 . . . 1 16 . 1 . 13 . . . 1 12 9 24 13 34 3 Investigation 26 | . 10 . . . . 3 . . . . 5 . . . 1 . . . . 6 . . . . 1 Extermination 21 | . . . . . . 7 . . . . 4 . . . 5 . . . . . 3 2 . . . Reinforcement 22 | . . . . . . 4 . . . . 3 . 1 . 4 . . . . 5 1 1 . 2 1 Assault 75 | . . . . . . . . . . 1 2 . . . 3 . . . 1 . 2 20 13 32 1 Garrison 13 | . . . . . . 6 . . . . 2 . . . . . . . . 1 3 1 . . . Intercept . | . . . . . . . . . . . . . . . . . . . . . . . . . . Searches Triggered . | . . . . . . . . . . . . . . . . . . . . . . . . . . Construction Impeded 3 | . . . . . . . . . . . 1 . 1 . . . . . . . . . . 1 . Haulers Reinforced 4 | . . . . . . 1 . . . . . . . . 2 . . . . . . . . 1 . Active Scanning Responses . | . . . . . . . . . . . . . . . . . . . . . . . . . . Cargo Convoy Interrupts 3 | . . . . . . 1 . . . . 1 . . . 1 . . . . . . . . . . Stealth | -11 -10 -10 -10 -9 -9 -6 -6 -6 -6 -5 -5 -5 -5 -5 -4 -4 -4 -4 -3 -3 -3 -3 -2 -1 -1 --------- Run | Yrd Mat Min Sub Rec Scr Fac Low Low Dat Pro Fac Gar Ext Cet Fac Upp Upp Zhi Pro Res Qua Sec Res Acc Com Distress Signals 28 | . 2 . . . . 2 . . . . . . 3 2 3 . . . . 11 . 1 . 2 2 Communications Jammed . | . . . . . . . . . . . . . . . . . . . . . . . . . . Distress Signals . | . . . . . . . . . . . . . . . . . . . . . . . . . . Times Spotted 1067 | . 38 28 20 6 . 88 17 15 . 32 103 . 20 10 81 21 15 . 29 47 39 103 12 92 251 Peak Tracking Total 108 | . 4 3 3 4 . 6 11 5 . 6 9 . 4 5 8 11 5 . 9 7 8 24 6 12 108 Tactical Retreats 39 | . 2 5 . . . 7 1 . . 1 5 . 1 . 8 1 . . . 2 1 2 . 1 2 Traps | -11 -10 -10 -10 -9 -9 -6 -6 -6 -6 -5 -5 -5 -5 -5 -4 -4 -4 -4 -3 -3 -3 -3 -2 -1 -1 ------- Run | Yrd Mat Min Sub Rec Scr Fac Low Low Dat Pro Fac Gar Ext Cet Fac Upp Upp Zhi Pro Res Qua Sec Res Acc Com Traps Triggered 30 | . 1 . 1 . . . . . . . 7 . . . 1 . . . . 6 3 . . . 11 Indirectly . | . . . . . . . . . . . . . . . . . . . . . . . . . . Trap Hack Attempts . | . . . . . . . . . . . . . . . . . . . . . . . . . . Triggered . | . . . . . . . . . . . . . . . . . . . . . . . . . . Disarmed 10 | . 10 . . . . . . . . . . . . . . . . . . . . . . . . Reprogrammed . | . . . . . . . . . . . . . . . . . . . . . . . . . . Reused . | . . . . . . . . . . . . . . . . . . . . . . . . . . Traps Extracted . | . . . . . . . . . . . . . . . . . . . . . . . . . . Installed . | . . . . . . . . . . . . . . . . . . . . . . . . . . Triggered 6 | . . . . . . 2 . 2 . . . . . . . . 2 . . . . . . . . Machines | -11 -10 -10 -10 -9 -9 -6 -6 -6 -6 -5 -5 -5 -5 -5 -4 -4 -4 -4 -3 -3 -3 -3 -2 -1 -1 ---------- Run | Yrd Mat Min Sub Rec Scr Fac Low Low Dat Pro Fac Gar Ext Cet Fac Upp Upp Zhi Pro Res Qua Sec Res Acc Com Machines Disabled 59 | . . . 1 . . 5 3 . . . 5 . 1 . 8 3 2 . . 2 8 12 . 6 3 Max in Single Turn 4 | . . . 1 . . 1 1 . . . 4 . 1 . 2 1 1 . . 1 4 1 . 1 1 Garrison Access 2 | . . . . . . . . . . . . . . . . . . . . 1 . . . 1 . Energy Cycler 1 | . . . . . . . . . . . . . . . . . . . . . . . . 1 . Machines Repaired . | . . . . . . . . . . . . . . . . . . . . . . . . . . Machines Dismantled . | . . . . . . . . . . . . . . . . . . . . . . . . . . Machines Sabotaged 5 | . 5 . . . . . . . . . . . . . . . . . . . . . . . . Overloaded Fab Kills . | . . . . . . . . . . . . . . . . . . . . . . . . . . Hacking | -11 -10 -10 -10 -9 -9 -6 -6 -6 -6 -5 -5 -5 -5 -5 -4 -4 -4 -4 -3 -3 -3 -3 -2 -1 -1 --------- Run | Yrd Mat Min Sub Rec Scr Fac Low Low Dat Pro Fac Gar Ext Cet Fac Upp Upp Zhi Pro Res Qua Sec Res Acc Com Machines Accessed 121 | . 10 . 2 11 5 19 3 3 4 . 15 1 4 . 6 2 4 4 . 8 10 6 1 . 3 Terminals 76 | . 8 . . 6 . 16 1 1 . . 9 1 4 . 5 1 1 . . 3 10 6 1 . 3 Fabricators 12 | . . . . . . 3 . . . . 5 . . . 1 . . . . 3 . . . . . Repair Stations . | . . . . . . . . . . . . . . . . . . . . . . . . . . Recycling Units 8 | . 2 . . 5 . . . . . . . . . . . . . . . 1 . . . . . Scanalyzers . | . . . . . . . . . . . . . . . . . . . . . . . . . . Garrison Access 2 | . . . . . . . . . . . 1 . . . . . . . . 1 . . . . . Total Hacks 420 | . 33 . 4 43 33 76 13 3 32 . 47 2 13 . 23 5 9 16 . 18 26 15 3 . 6 Successful 317 | . 27 . 4 32 33 51 13 3 32 . 30 1 7 . 11 5 9 16 . 10 14 12 3 . 4 Failed 101 | . 5 . . 11 . 25 . . . . 17 1 6 . 12 . . . . 8 12 2 . . 2 Catastrophic 12 | . 1 . . . . 2 . . . . 1 . 2 . 4 . . . . 1 . . . . 1 Database Lockouts 2 | . 1 . . . . . . . . . . . . . . . . . . . . 1 . . . Manual 243 | . 29 . . 42 . 59 . . . . 36 . 13 1 23 . . . . 9 13 11 3 . 4 Terminals 260 | . 31 . . 28 . 59 7 1 . . 33 2 13 . 21 4 4 . . 7 26 15 3 . 6 Fabricators 41 | . . . . . . 17 . . . . 13 . . . 2 . . . . 9 . . . . . Repair Stations . | . . . . . . . . . . . . . . . . . . . . . . . . . . Recycling Units 18 | . 2 . . 15 . . . . . . . . . . . . . . . 1 . . . . . Scanalyzers . | . . . . . . . . . . . . . . . . . . . . . . . . . . Garrison Access 2 | . . . . . . . . . . . 1 . . . . . . . . 1 . . . . . Terminal Hacks 190 | . 12 . 4 7 33 17 13 3 32 . 9 1 3 . 4 5 9 16 . 2 9 7 2 . 2 Record 74 | . . . 3 1 25 . 12 2 11 . . . . . . 5 7 5 . . 2 . . . 1 Part Schematic 15 | . . . . . . . . . 11 . . . . . . . . 3 . . . 1 . . . Robot Schematic 10 | . . . . . . 2 . . 7 . . . . . . . . . . 1 . . . . . Robot Analysis 35 | . 6 . . 5 8 5 . . . . 1 . . . . . . 4 . . 2 3 . . 1 Prototype ID Bank 8 | . . . . . . . . . 3 . 1 . . . . . . 4 . . . . . . . Open Door 8 | . . . 1 . . . 1 1 . . . . . . . . 2 . . . 2 1 . . . Level Access Points 4 | . . . . 1 . 1 . . . . . . . . . . . . . . 1 . 1 . . Branch Access Points 5 | . 1 . . . . 1 . . . . 1 . . . . . . . . . 1 . 1 . . Emergency Access Points 1 | . . . . . . . . . . . . 1 . . . . . . . . . . . . . Terminal Index 2 | . . . . . . . . . . . . . . . 1 . . . . . 1 . . . . Fabricator Index 2 | . . . . . . 1 . . . . . . . . . . . . . 1 . . . . . Alert Level 9 | . 2 . . . . 4 . . . . 2 . 1 . . . . . . . . . . . . Unreport Threat 13 | . 1 . . . . 2 . . . . 4 . 2 . 3 . . . . . . 1 . . . Disarm Traps 2 | . 2 . . . . . . . . . . . . . . . . . . . . . . . . Hauler Manifests 1 | . . . . . . 1 . . . . . . . . . . . . . . . . . . . Activate Exoskeleton 1 | . . . . . . . . . . . . . . . . . . . . . . 1 . . . Fabricator Hacks 19 | . . . . . . 10 . . . . 3 . . . . . . . . 6 . . . . . Load Schematic 10 | . . . . . . 5 . . . . 2 . . . . . . . . 3 . . . . . Build 9 | . . . . . . 5 . . . . 1 . . . . . . . . 3 . . . . . Repair Station Hacks . | . . . . . . . . . . . . . . . . . . . . . . . . . . Recycling Unit Hacks 1 | . . . . 1 . . . . . . . . . . . . . . . . . . . . . Report Inventory 1 | . . . . 1 . . . . . . . . . . . . . . . . . . . . . Scanalyzer . | . . . . . . . . . . . . . . . . . . . . . . . . . . Garrison Access Hacks 1 | . . . . . . . . . . . 1 . . . . . . . . . . . . . . Unlock Access 1 | . . . . . . . . . . . 1 . . . . . . . . . . . . . . Unauthorized Hacks 106 | . 15 . . 24 . 24 . . . . 17 . 4 . 7 . . . . 2 5 5 1 . 2 Terminals 74 | . 13 . . 10 . 20 . . . . 9 . 4 . 5 . . . . . 5 5 1 . 2 Track 1 | . . . . 1 . . . . . . . . . . . . . . . . . . . . . Assimilate 3 | . . . . . . 3 . . . . . . . . . . . . . . . . . . . Botnet 56 | . 6 . . 5 . 16 . . . . 8 . 4 . 5 . . . . . 5 4 1 . 2 Disrupt 1 | . . . . . . . . . . . . . . . . . . . . . . 1 . . . Operators 3 | . . . . 1 . 1 . . . . 1 . . . . . . . . . . . . . . Skim 3 | . . . . 3 . . . . . . . . . . . . . . . . . . . . . Sabotage 7 | . 7 . . . . . . . . . . . . . . . . . . . . . . . . Fabricators 14 | . . . . . . 4 . . . . 8 . . . 2 . . . . . . . . . . Prioritize 7 | . . . . . . 2 . . . . 4 . . . 1 . . . . . . . . . . Liberate 7 | . . . . . . 2 . . . . 4 . . . 1 . . . . . . . . . . Repair Stations . | . . . . . . . . . . . . . . . . . . . . . . . . . . Recycling Units 17 | . 2 . . 14 . . . . . . . . . . . . . . . 1 . . . . . Monitor 1 | . . . . 1 . . . . . . . . . . . . . . . . . . . . . Reject 5 | . . . . 5 . . . . . . . . . . . . . . . . . . . . . Recyclers 1 | . . . . 1 . . . . . . . . . . . . . . . . . . . . . Mask 2 | . . . . 2 . . . . . . . . . . . . . . . . . . . . . Tunnel 8 | . 2 . . 5 . . . . . . . . . . . . . . . 1 . . . . . Scanalyzers . | . . . . . . . . . . . . . . . . . . . . . . . . . . Garrison Access 1 | . . . . . . . . . . . . . . . . . . . . 1 . . . . . Reprogram 1 | . . . . . . . . . . . . . . . . . . . . 1 . . . . . Data Cores Recovered 4 | . . . . . . 1 . . . . . . . . 1 . . . . . 1 1 . . . Used 2 | . . . . . . 1 . . . . . . . . . . . . . . . 1 . . . Hacking Detections 61 | . 2 . . 7 . 17 . . . . 11 . 4 . 5 1 . . . 5 5 1 1 . 2 Full Trace Events 8 | . . . . . . 3 . . . . 2 . . . . . . . . 3 . . . . . Feedback Events . | . . . . . . . . . . . . . . . . . . . . . . . . . . Feedback Blocked . | . . . . . . . . . . . . . . . . . . . . . . . . . . Robot Schematics Acquired 10 | . . . . . . 2 . . 7 . . . . . . . . . . 1 . . . . . Robots Built 15 | . . . . . . 10 . . . . 2 . . . . . . . . 3 . . . . . Authchips 3 | . . . . . . 3 . . . . . . . . . . . . . . . . . . . Time 620 | . . . . . . 327 . . . . 76 . . . . . . . . 217 . . . . . Total Robot Build Rating 79 | . . . . . . 48 . . . . 10 . . . . . . . . 21 . . . . . Part Schematics Acquired 19 | . . . . . . . . . 11 . . . . . . . . 3 . . 1 4 . . . Parts Built . | . . . . . . . . . . . . . . . . . . . . . . . . . . Authchips . | . . . . . . . . . . . . . . . . . . . . . . . . . . Time . | . . . . . . . . . . . . . . . . . . . . . . . . . . Total Part Build Rating . | . . . . . . . . . . . . . . . . . . . . . . . . . . Parts Repaired . | . . . . . . . . . . . . . . . . . . . . . . . . . . Time . | . . . . . . . . . . . . . . . . . . . . . . . . . . Parts Recycled . | . . . . . . . . . . . . . . . . . . . . . . . . . . Recycled Matter . | . . . . . . . . . . . . . . . . . . . . . . . . . . Retrieved Matter . | . . . . . . . . . . . . . . . . . . . . . . . . . . Retrieved Components . | . . . . . . . . . . . . . . . . . . . . . . . . . . Parts Scanalyzed . | . . . . . . . . . . . . . . . . . . . . . . . . . . Part Schematics Acquired . | . . . . . . . . . . . . . . . . . . . . . . . . . . Parts Damaged . | . . . . . . . . . . . . . . . . . . . . . . . . . . Bothacking | -11 -10 -10 -10 -9 -9 -6 -6 -6 -6 -5 -5 -5 -5 -5 -4 -4 -4 -4 -3 -3 -3 -3 -2 -1 -1 ------------ Run | Yrd Mat Min Sub Rec Scr Fac Low Low Dat Pro Fac Gar Ext Cet Fac Upp Upp Zhi Pro Res Qua Sec Res Acc Com Used RIF Installer 1 | . . . . . . . . . . . . 1 . . . . . . . . . . . . . Robots Hacked . | . . . . . . . . . . . . . . . . . . . . . . . . . . Non-combat . | . . . . . . . . . . . . . . . . . . . . . . . . . . Combat . | . . . . . . . . . . . . . . . . . . . . . . . . . . Robot Hacks Applied . | . . . . . . . . . . . . . . . . . . . . . . . . . . Relay Couplers Released 5 | . . . . . . 1 . . . . . . . . 1 . . . . 1 . . . 2 . Machine Destruction 3 | . . . . . . . . . . . . . . . . . . . . 1 . . . 2 . Programmers 2 | . . . . . . 1 . . . . . . . . 1 . . . . . . . . . . Fabnet Peak Effective % . | . . . . . . . . . . . . . . . . . . . . . . . . . . Robots Rewired 23 | . . . . 7 . . . . . 1 . 1 12 . . . . . 2 . . . . . . Allies Hacked 8 | . . . . . . 4 2 1 . 1 . . . . . . . . . . . . . . . Hacks Repelled . | . . . . . . . . . . . . . . . . . . . . . . . . . . Allies | -11 -10 -10 -10 -9 -9 -6 -6 -6 -6 -5 -5 -5 -5 -5 -4 -4 -4 -4 -3 -3 -3 -3 -2 -1 -1 -------- Run | Yrd Mat Min Sub Rec Scr Fac Low Low Dat Pro Fac Gar Ext Cet Fac Upp Upp Zhi Pro Res Qua Sec Res Acc Com Total Allies 58 | . . 1 . 7 . 14 2 1 . 1 2 2 15 5 . . . . 2 5 . 1 . . . Largest Group 22 | . . 1 . 7 7 9 8 5 3 3 2 3 17 22 22 . . . 2 3 1 1 1 1 1 Highest-Rated Group 1204 | . . 31 . 114 114 344 311 172 98 98 86 130 624 1092 1092 . . . 94 159 91 1204 1204 1204 1204 Highest-Rated Ally 1204 | . . 31 . 27 27 54 54 54 40 40 43 46 159 159 152 . . . 47 91 91 1204 1204 1204 1204 Total Orders 58 | . . . . 7 10 18 9 . . 2 . . . . 1 . . . . 6 5 . . . . STAY 33 | . . . . 3 2 12 7 . . 1 . . . . 1 . . . . 4 3 . . . . FOLLOW 18 | . . . . 2 4 5 2 . . 1 . . . . . . . . . 2 2 . . . . DROP 2 | . . . . . 1 1 . . . . . . . . . . . . . . . . . . . PICKUP 1 | . . . . 1 . . . . . . . . . . . . . . . . . . . . . COLLECT 4 | . . . . 1 3 . . . . . . . . . . . . . . . . . . . . Ally Attacks 498 | . . 11 . . . 97 23 23 . 28 8 . 34 18 43 . . . 11 19 . 52 11 92 28 Total Damage 25777 | . . 145 . . . 2866 756 465 . 399 193 . 407 371 1267 . . . 223 431 217 5876 733 8368 3060 Kills 123 | . . 4 . . . 25 7 3 . 4 . . 5 3 10 . . . . 4 1 16 4 26 11 Allies Corrupted 1 | . . . . . . . . . . . . . . . 1 . . . . . . . . . . Allies Melted 2 | . . . . . . . . . . . . . . . 1 . . . . 1 . . . . . Intel | -11 -10 -10 -10 -9 -9 -6 -6 -6 -6 -5 -5 -5 -5 -5 -4 -4 -4 -4 -3 -3 -3 -3 -2 -1 -1 ------- Run | Yrd Mat Min Sub Rec Scr Fac Low Low Dat Pro Fac Gar Ext Cet Fac Upp Upp Zhi Pro Res Qua Sec Res Acc Com Robot Analysis Total 35 | . 6 . . 5 8 5 . . . . 1 . . . . . . 4 . . 2 3 . . 1 Derelict Logs Recovered 12 | . . 1 2 . 1 . 1 2 . 3 . . . . . 1 1 . . . . . . . . Drone Launches . | . . . . . . . . . . . . . . . . . . . . . . . . . . Drone Recoveries . | . . . . . . . . . . . . . . . . . . . . . . . . . . Exploration | -11 -10 -10 -10 -9 -9 -6 -6 -6 -6 -5 -5 -5 -5 -5 -4 -4 -4 -4 -3 -3 -3 -3 -2 -1 -1 ------------- Run | Yrd Mat Min Sub Rec Scr Fac Low Low Dat Pro Fac Gar Ext Cet Fac Upp Upp Zhi Pro Res Qua Sec Res Acc Com Turns Passed 32456 | 49 1455 1737 1905 1998 1702 4686 1460 1001 100 956 2869 637 617 276 1904 1015 812 116 974 2002 1729 1027 128 595 706 Spaces Moved 25186 | 41 1057 1243 1564 1522 1545 3392 1135 901 91 802 2073 579 486 118 1344 913 784 116 871 1627 1363 711 83 407 418 Core 2 | 2 . . . . . . . . . . . . . . . . . . . . . . . . . Treads . | . . . . . . . . . . . . . . . . . . . . . . . . . . Legs 15864 | . . . . . . 1042 1135 901 91 802 2073 579 486 118 1344 913 784 116 871 1627 1363 711 83 407 418 Wheels 9320 | 39 1057 1243 1564 1522 1545 2350 . . . . . . . . . . . . . . . . . . . Hover . | . . . . . . . . . . . . . . . . . . . . . . . . . . Flight . | . . . . . . . . . . . . . . . . . . . . . . . . . . Fastest Speed 50 | 50 100 100 100 100 100 100 100 100 100 100 100 100 100 100 97 97 97 97 97 96 100 105 105 104 104 Average Speed 100 | 97 100 100 100 100 100 103 100 100 100 100 100 100 100 100 102 97 97 97 97 98 104 105 105 104 110 Slowest Speed 176 | 100 100 100 100 100 100 115 100 100 100 100 100 100 100 100 105 97 97 97 97 175 105 105 105 105 176 Overloaded Moves . | . . . . . . . . . . . . . . . . . . . . . . . . . . Propulsion Burnouts . | . . . . . . . . . . . . . . . . . . . . . . . . . . Robots Hopped . | . . . . . . . . . . . . . . . . . . . . . . . . . . Cave-ins Triggered . | . . . . . . . . . . . . . . . . . . . . . . . . . . Teleports 65 | . . . . . . . . . . . . . . . . . . . . . . 25 3 17 20 Exploration Rate (%) 67 | 3 97 97 91 98 87 70 91 92 69 93 66 81 81 58 29 94 95 60 97 36 64 51 5 22 32 Regions Visited 25 Branch Regions 17 Pre-discovered Areas 20 | . 2 1 1 5 2 . 2 1 1 1 . . . . . . . 3 . 1 . . . . . Known Exits Taken 7 | . 1 . . . . 1 . . . 1 1 . . . . . . . . 1 . 1 1 . . Unknown Exits Taken 17 | 1 . 1 1 1 1 . 1 1 1 . . . 1 1 1 1 1 1 1 . 1 . . 1 . Scrap Searched 37 | . . 1 13 . 2 . 3 4 . 4 . . . . . 2 4 . 4 . . . . . . Spaces Dug 97 | . . . . 1 . 8 . . . . 19 . 3 . 16 2 2 . . 16 11 2 2 11 4 Terrain Destroyed 1353 | . . . 1 5 . 23 2 4 . 4 89 4 13 7 66 38 11 . 14 63 79 22 6 30 872 Melee . | . . . . . . . . . . . . . . . . . . . . . . . . . . Projectile 462 | . . . 1 5 . 23 2 4 . 4 57 4 13 7 66 38 11 . 14 63 26 22 6 30 66 AOE 891 | . . . . . . . . . . . 32 . . . . . . . . . 53 . . . 806 Terrain Rammed . | . . . . . . . . . . . . . . . . . . . . . . . . . . Walls Destroyed . | . . . . . . . . . . . . . . . . . . . . . . . . . . Machines Disabled . | . . . . . . . . . . . . . . . . . . . . . . . . . . Actions | -11 -10 -10 -10 -9 -9 -6 -6 -6 -6 -5 -5 -5 -5 -5 -4 -4 -4 -4 -3 -3 -3 -3 -2 -1 -1 --------- Run | Yrd Mat Min Sub Rec Scr Fac Low Low Dat Pro Fac Gar Ext Cet Fac Upp Upp Zhi Pro Res Qua Sec Res Acc Com Total 31061 | 46 1300 1637 1831 1971 1705 4429 1442 983 100 907 2737 621 600 268 1795 1023 822 118 979 1958 1627 920 117 524 601 Wait 3525 | . 118 321 167 342 142 762 271 38 10 9 365 19 51 128 291 50 8 1 44 162 122 68 1 17 18 Move 25161 | 40 1056 1242 1563 1521 1544 3391 1134 900 90 801 2072 578 485 117 1343 912 783 115 870 1626 1362 710 82 406 418 Hop . | . . . . . . . . . . . . . . . . . . . . . . . . . . Pick Up 26 | . 1 . . 9 9 2 . . . . 3 . . . . . . . . 1 1 . . . . Fast Attach 53 | 6 3 2 2 1 1 6 . . . 1 3 . . . 4 1 . 1 . 7 5 8 . 2 . Attach 7 | . . . . . 1 1 . . . . 2 . . . 1 . . . . 2 . . . . . Detach 3 | . . . . . . . . . . . . . . . 1 . . . . . 1 1 . . . Swap 52 | . 3 3 1 2 . 9 . . . 1 3 . . 3 3 1 . 1 . 9 4 7 . 1 1 Drop 40 | . . 2 2 9 8 5 . . . 2 2 . . . 1 . . . . . 6 3 . . . Fire 1241 | . 87 55 63 37 . 184 22 22 . 58 158 19 21 7 92 22 16 . 26 70 57 82 8 62 73 Melee . | . . . . . . . . . . . . . . . . . . . . . . . . . . Ram . | . . . . . . . . . . . . . . . . . . . . . . . . . . Kick 1 | . . . . . . . . . . . 1 . . . . . . . . . . . . . . Crush . | . . . . . . . . . . . . . . . . . . . . . . . . . . Escape Stasis 49 | . . . . . . . . . . . 1 . . . . . . . . . . . . . 48 Rewire 88 | . . . . 27 . 2 3 . . 3 . 5 33 . . . . . 15 . . . . . . Trap . | . . . . . . . . . . . . . . . . . . . . . . . . . . Miscellaneous 815 | . 32 12 33 23 . 67 12 23 . 32 127 . 10 13 59 37 15 . 24 81 69 41 26 36 43 Route ------- -11/Scrapyard -10/Materials (discovered 5 exits: [*Mat x3] / *Min / *Sub) -10/Mines (discovered 3 exits: [*Mat x2] / *Sub) -10/Subcaves (discovered 3 exits: [*Mat x2] / *Rec) -9/Recycling (discovered 2 exits: *Fac / *Scr) -9/Scraptown (discovered 2 exits: *Fac x2) -6/Factory (discovered 6 exits: *Fac x4 / *Low x2) -6/Lower Caves -6/Lower Caves (discovered 2 exits: *Fac / *Dat) -6/Data Miner -5/Proximity Caves -5/Factory (discovered 7 exits: *Fac x2 / *Upp x2 / Ext x2 / Gar) -5/Garrison (discovered 3 exits: *Ext x3) -5/Extension (discovered 2 exits: *Fac / *Cet) -5/Cetus (discovered 2 exits: *Fac / [*Arc]) -4/Factory (discovered 2 exits: *Res / *Upp) -4/Upper Caves -4/Upper Caves (discovered 2 exits: *Res / *Zhi) -4/Zhirov -3/Proximity Caves -3/Research (discovered 4 exits: *Res x2 / [*Arm] / *Qua) -3/Quarantine (discovered 2 exits: *Res / *Sec) -3/Section 7 -2/Research (discovered 5 exits: *Acc x3 / Tes x2) -1/Access -1/Command (discovered 1 exit: [*Sur]) History --------- Turn | Location | Event 1 | -11/Scrapyard | Upgraded with Power slot (x1) 1 | -11/Scrapyard | Upgraded with Propulsion slot (x1) 1 | -11/Scrapyard | Upgraded with Utility slot (x1) 1 | -11/Scrapyard | Upgraded with Weapon slot (x1) 20 | -11/Scrapyard | Discovered new exit (range 15) 50 | -11/Scrapyard | Entered Materials 133 | -10/Materials | Discovered new exit (range 15) 139 | -10/Materials | Central database locked down 239 | -10/Materials | Identified exit to Mines 278 | -10/Materials | Discovered new exit (range 15) 361 | -10/Materials | Build established: Hacker-Mutant 471 | -10/Materials | Discovered new exit (range 10) 531 | -10/Materials | Reached level 2 650 | -10/Materials | Upgraded with Utility slot (x1) 796 | -10/Materials | Discovered new exit (range 8) 993 | -10/Materials | Reached level 3 1247 | -10/Materials | Reached level 4 1505 | -10/Materials | Entered Mines 1507 | -10/Mines | Reached level 5 1584 | -10/Mines | Assembled infested the area 1781 | -10/Mines | Discovered new exit (range 6) 1800 | -10/Mines | Core integrity fell below 50% 1858 | -10/Mines | Discovered new exit (range 7) 1879 | -10/Mines | Received a Mining Laser from a helpful Derelict 2173 | -10/Mines | Learned location of Zion (-7) 2356 | -10/Mines | Upgraded with Utility slot (x1) 2738 | -10/Mines | Build established: Hacker-Skirmisher 2764 | -10/Mines | Discovered new exit (range 13) 3242 | -10/Mines | Entered Subcaves 3244 | -10/Subcaves | Reached level 6 3248 | -10/Subcaves | Discovered new exit (range 7) 3280 | -10/Subcaves | Learned Materials security intel 3416 | -10/Subcaves | Disturbed a concealed Subdweller 3455 | -10/Subcaves | Met a Zionite searching for "candidates" 3539 | -10/Subcaves | Visited 4L-MR0's lab 3550 | -10/Subcaves | Found Prototype Energy Cannon 3550 | -10/Subcaves | Identified Powered Cannon 3551 | -10/Subcaves | Attached Powered Cannon, gained temporary slot: Power 3605 | -10/Subcaves | Learned Materials trap positions 3606 | -10/Subcaves | Discovered new exit (range 11) 3719 | -10/Subcaves | Shifting Twisted Machinery released Sub. Monowheel 3916 | -10/Subcaves | Shifting Twisted Machinery released Sub. Laser 4092 | -10/Subcaves | Disturbed a concealed Subdweller 4238 | -10/Subcaves | Shifting Twisted Machinery released Sub. Shrapnel Launcher 4277 | -10/Subcaves | Shifting Twisted Machinery released Hvy. Riot Gun 4373 | -10/Subcaves | Discovered new exit (range 13) 4392 | -10/Subcaves | Ambushed by Subdwellers from Twisted Machinery 4738 | -10/Subcaves | Visited Clippyterm 4741 | -10/Subcaves | Learned Factory trap positions 4892 | -10/Subcaves | Disturbed a concealed Subdweller 5099 | -10/Subcaves | Shifting Twisted Machinery released Mak. Axe 5101 | -10/Subcaves | Shifting Twisted Machinery released Sub. Monowheel 5147 | -10/Subcaves | Entered Recycling 5177 | -9/Recycling | Reached level 7 5205 | -9/Recycling | Identified exit to Factory 5348 | -9/Recycling | Scanned before Scraplab entrance 5530 | -9/Recycling | Upgraded with Utility slot (x1) 6417 | -9/Recycling | Discovered new exit (range 13) 6432 | -9/Recycling | Entered Scraplab 6508 | -9/Recycling | Build established: Commander-Skirmisher 7145 | -9/Recycling | Entered Scraptown 7145 | -9/Scraptown | Accompanied by 7 allies 7147 | -9/Scraptown | Reached level 8 7241 | -9/Scraptown | Upgraded with Propulsion slot (x1) 7241 | -9/Scraptown | Upgraded with Weapon slot (x1) 7299 | -9/Scraptown | Discovered new exit (range 9) 7316 | -9/Scraptown | Scanned Subdweller tech in exchange for log data 7319 | -9/Scraptown | Learned location of Warlord (-5) 7344 | -9/Scraptown | Visited The Evicted 7358 | -9/Scraptown | Visited Comm Corps 7373 | -9/Scraptown | Visited SPCMW 7421 | -9/Scraptown | Visited Cave Peace 7459 | -9/Scraptown | Heard Great Nut preacher, LISTEN AND RECITE! 7547 | -9/Scraptown | Build established: Commander-Assassin 7591 | -9/Scraptown | Visited CPS Storage 7613 | -9/Scraptown | Visited Cyclists 7686 | -9/Scraptown | Visited Awakened 7721 | -9/Scraptown | Visited UFD Registry 7826 | -9/Scraptown | Registered with UFD as "Arcdriver" 7858 | -9/Scraptown | Visited Infowarlord's Domain 7882 | -9/Scraptown | Visited Derelict Rescue Squad 7908 | -9/Scraptown | Visited Scrap Suit Storage 7926 | -9/Scraptown | Visited Chapter 10 7938 | -9/Scraptown | Visited Analyses Database 7959 | -9/Scraptown | Visited Supply Room 7976 | -9/Scraptown | Visited Scrapoid Pod Storage 7993 | -9/Scraptown | Visited Abandonware Association 8007 | -9/Scraptown | Learned abandonware demo "REVENGE.EXE" 8032 | -9/Scraptown | Visited A0-MCA Data Center 8054 | -9/Scraptown | Visited Curators Association 8308 | -9/Scraptown | Entered Cyclist Reading Room 8770 | -9/Scraptown | Discovered new exit (range 8) 8847 | -9/Scraptown | Entered Factory 8847 | -6/Factory | Accompanied by 7 allies 8848 | -6/Factory | Loaded intel: 94 trap records 8849 | -6/Factory | Reached level 9 8849 | -6/Factory | Reached level 10 8849 | -6/Factory | Reached level 11 8849 | -6/Factory | Reached level 12 8951 | -6/Factory | Build established: Commander-Tank 9518 | -6/Factory | Reached level 13 9541 | -6/Factory | Garrison activated, responded to threat 10083 | -6/Factory | Reached level 14 10417 | -6/Factory | Discovered new exit (range 14) 10485 | -6/Factory | Build established: Hacker-Tank 10493 | -6/Factory | Discovered new exit (range 15) 11078 | -6/Factory | Upgraded with Utility slot (x1) 11134 | -6/Factory | Reached level 15 11155 | -6/Factory | Fabricated P-60 Hacker (x2) 11226 | -6/Factory | Fabricated P-60 Hacker (x2) 11295 | -6/Factory | Fabricated P-60 Hacker (x2) 11536 | -6/Factory | Cargo convoy interrupted 11550 | -6/Factory | Garrison activated, responded to threat 11561 | -6/Factory | Hacker 5a assimilated hostile I-36 Angel 11578 | -6/Factory | Lost 3 allies 11619 | -6/Factory | Discovered new exit (range 11) 11638 | -6/Factory | Reached level 16 11716 | -6/Factory | Hacker 5d assimilated hostile B-48 Gladiator 11983 | -6/Factory | Spotted B-75 Beast 11993 | -6/Factory | Destroyed B-75 Beast 12013 | -6/Factory | Reached level 17 12127 | -6/Factory | Upgraded with Weapon slot (x1) 12198 | -6/Factory | Identified exit to Lower Caves 12198 | -6/Factory | Identified exit to Factory 12359 | -6/Factory | Fabricated P-70 Sage (x2) 12841 | -6/Factory | Reached level 18 13204 | -6/Factory | Fabricated P-70 Sage (x2) 13317 | -6/Factory | Sage 5d assimilated hostile O-24 Administrator 13533 | -6/Factory | Entered Lower Caves 13533 | -6/Lower Caves | Accompanied by 7 allies 13866 | -6/Lower Caves | Encountered a Warlord checkpoint 13917 | -6/Lower Caves | Sage 5c assimilated hostile L-41 Fighter 13923 | -6/Lower Caves | Learned 8 Factory zone layouts 14182 | -6/Lower Caves | Attracted the attention of an 0b10 base 14209 | -6/Lower Caves | Sage 5c assimilated hostile G-50 Soldier 14227 | -6/Lower Caves | Lost 4 allies 14231 | -6/Lower Caves | Discovered new exit (range 18) 14250 | -6/Lower Caves | Reached level 19 14277 | -6/Lower Caves | Learned location of 1 exit from Research 14277 | -6/Lower Caves | Learned Research stockpile data 14277 | -6/Lower Caves | Learned Armory security intel 14277 | -6/Lower Caves | Learned Factory garrison access intel 14432 | -6/Lower Caves | Learned location of 1 exit from Factory 14432 | -6/Lower Caves | Learned Factory security intel 14432 | -6/Lower Caves | Learned Extension terminal intel 14993 | -6/Lower Caves | Entered another Lower Caves area 14993 | -6/Lower Caves | Accompanied by 4 allies 14996 | -6/Lower Caves | Sage 5c assimilated hostile G-50 Soldier 15111 | -6/Lower Caves | Discovered exit to Factory (range 6) 15112 | -6/Lower Caves | Learned 4 Factory zone layouts 15527 | -6/Lower Caves | Discovered new exit (range 17) 15815 | -6/Lower Caves | Encountered a Warlord checkpoint 15994 | -6/Lower Caves | Entered Data Miner 15994 | -6/Data Miner | Accompanied by 3 allies 15994 | -6/Data Miner | Discovered new exit (range 6) 16013 | -6/Data Miner | Met Data Miner 16050 | -6/Data Miner | Learned location of Section 7 (-3) 16050 | -6/Data Miner | Acquired the access code to Warlord's prototype stash 16060 | -6/Data Miner | Received God Mode back door access code from Data Miner 16094 | -6/Data Miner | Entered Proximity Caves 16094 | -5/Proximity Caves | Accompanied by 3 allies 16096 | -5/Proximity Caves | Reached level 20 16341 | -5/Proximity Caves | Learned 4 Factory zone layouts 16552 | -5/Proximity Caves | Attracted the attention of an 0b10 checkpoint 16577 | -5/Proximity Caves | Reached level 21 16621 | -5/Proximity Caves | Destroyed 9 combat bots 16632 | -5/Proximity Caves | Attracted the attention of an 0b10 outpost 16770 | -5/Proximity Caves | Learned Factory security intel 16875 | -5/Proximity Caves | Discovered exit to Factory (range 16) 16877 | -5/Proximity Caves | Spotted B-75 Beast 16891 | -5/Proximity Caves | Destroyed B-75 Beast 17050 | -5/Proximity Caves | Entered Factory 17050 | -5/Factory | Accompanied by 1 ally 17051 | -5/Factory | Identified exit to Extension 17052 | -5/Factory | Reached level 22 17054 | -5/Factory | Loaded intel: 4 garrison access locations 17581 | -5/Factory | Discovered new exit (range 15) 17736 | -5/Factory | Garrison activated, responded to threat 17950 | -5/Factory | First assault squad dispatched 17978 | -5/Factory | Cargo convoy interrupted 17980 | -5/Factory | Upgraded with Weapon slot (x1) 17994 | -5/Factory | Reached level 23 18003 | -5/Factory | Core integrity fell below 50% 18026 | -5/Factory | Upgraded with Utility slot (x1) 18094 | -5/Factory | Upgraded with Power slot (x1) 18254 | -5/Factory | Discovered new exit (range 14) 18308 | -5/Factory | Build established: Hacker-Gunner 19203 | -5/Factory | Build established: Hacker-Skirmisher 19255 | -5/Factory | Identified exit to Upper Caves 19303 | -5/Factory | Discovered new exit (range 20) 19312 | -5/Factory | Destroyed 7 combat bots 19693 | -5/Factory | Fabricated X-67 Chaingunner (x2) 19735 | -5/Factory | Build established: Hacker-Gunner 19869 | -5/Factory | Garrison activated, responded to threat 19914 | -5/Factory | Destroyed 7 combat bots 19918 | -5/Factory | Identified exit to Garrison 19919 | -5/Factory | Entered Garrison 19919 | -5/Garrison | Discovered recently destroyed garrison 19919 | -5/Garrison | Accompanied by 1 ally 19919 | -5/Garrison | Reached level 24 19941 | -5/Garrison | Heavy support dispatched to Extension 19958 | -5/Garrison | Rescued a captive Derelict 20079 | -5/Garrison | Discovered exit to Extension (range 11) 20192 | -5/Garrison | Discovered exit to Extension (range 10) 20332 | -5/Garrison | Discovered exit to Extension (range 18) 20497 | -5/Garrison | Installed Relay Interface Framework 20556 | -5/Garrison | Entered Extension 20556 | -5/Extension | Accompanied by 3 allies 20557 | -5/Extension | Loaded intel: 8 terminal locations 20600 | -5/Extension | Rescued a captive Derelict 20672 | -5/Extension | Rescued a captive Derelict 20755 | -5/Extension | Rescued A7 20764 | -5/Extension | Spotted B-75 Beast 20770 | -5/Extension | Destroyed B-75 Beast 20790 | -5/Extension | Spotted B-75 Beast 20792 | -5/Extension | Destroyed B-75 Beast 21117 | -5/Extension | Discovered new exit (range 8) 21117 | -5/Extension | Discovered new exit (range 10) 21173 | -5/Extension | Entered Cetus 21173 | -5/Cetus | Accompanied by 17 allies (A7) 21178 | -5/Cetus | Acquired a Cetus Manufacturing Module code from A7 21185 | -5/Cetus | Spotted Cetus Guard 21186 | -5/Cetus | Spotted Cetus Guard 21187 | -5/Cetus | Spotted Cetus Guard 21189 | -5/Cetus | Spotted Cetus Guard 21193 | -5/Cetus | Destroyed Cetus Guard 21195 | -5/Cetus | Destroyed Cetus Guard 21199 | -5/Cetus | Allies destroyed Cetus Guard 21199 | -5/Cetus | Destroyed Cetus Guard 21245 | -5/Cetus | Started Cetus Manufacturing Module 21254 | -5/Cetus | Discovered new exit (range 19) 21270 | -5/Cetus | Manufactured an Enhanced Grunt 21273 | -5/Cetus | Spotted Cetus Guard 21274 | -5/Cetus | Spotted Cetus Guard 21274 | -5/Cetus | Spotted Cetus Guard 21277 | -5/Cetus | Discovered new exit (range 19) 21277 | -5/Cetus | Spotted Cetus Guard 21280 | -5/Cetus | Destroyed Cetus Guard 21281 | -5/Cetus | Allies destroyed Cetus Guard 21284 | -5/Cetus | Destroyed Cetus Guard 21284 | -5/Cetus | Allies destroyed Cetus Guard 21290 | -5/Cetus | Met Revision 17 21295 | -5/Cetus | Manufactured an Enhanced Grunt 21320 | -5/Cetus | Manufactured an Enhanced Grunt 21345 | -5/Cetus | Manufactured an Enhanced Grunt 21368 | -5/Cetus | Build established: Commander-Gunner 21370 | -5/Cetus | Manufactured an Enhanced Grunt 21449 | -5/Cetus | Entered Factory 21449 | -4/Factory | Accompanied by 22 allies (A7) 21451 | -4/Factory | Reached level 25 21775 | -4/Factory | Upgraded with Propulsion slot (x1) 21985 | -4/Factory | First assault squad dispatched 22015 | -4/Factory | Discovered new exit (range 15) 22208 | -4/Factory | Reached level 26 22288 | -4/Factory | Spotted B-86 Titan 22294 | -4/Factory | Destroyed B-86 Titan 22361 | -4/Factory | Upgraded with Weapon slot (x1) 22488 | -4/Factory | Cargo convoy interrupted 22526 | -4/Factory | Found Prototype Device 22526 | -4/Factory | Identified Exp. ECM Suite 22662 | -4/Factory | Build established: Wizard-Executioner 22872 | -4/Factory | Discovered new exit (range 19) 23328 | -4/Factory | Reached level 27 23353 | -4/Factory | Entered Upper Caves 23369 | -4/Upper Caves | Destroyed 7 combat bots 23433 | -4/Upper Caves | Learned Research interactive machine intel 23609 | -4/Upper Caves | Found Alien Artifact 23609 | -4/Upper Caves | Identified Dimensional Node Initializer 23609 | -4/Upper Caves | Initialized slip node 23710 | -4/Upper Caves | Discovered new exit (range 19) 23801 | -4/Upper Caves | Attracted the attention of an 0b10 checkpoint 24128 | -4/Upper Caves | Attracted the attention of an 0b10 base 24186 | -4/Upper Caves | Learned Factory stockpile data 24186 | -4/Upper Caves | Learned Armory trap positions 24186 | -4/Upper Caves | Learned Armory terminal intel 24190 | -4/Upper Caves | Destroyed 11 combat bots 24368 | -4/Upper Caves | Entered another Upper Caves area 24420 | -4/Upper Caves | Discovered new exit (range 11) 24457 | -4/Upper Caves | Attracted the attention of an 0b10 base 24481 | -4/Upper Caves | Learned location of 2 exits from Lower Caves 24481 | -4/Upper Caves | Learned location of 1 exit from Factory 24481 | -4/Upper Caves | Learned Factory emergency access door positions 24488 | -4/Upper Caves | Destroyed 7 combat bots 24520 | -4/Upper Caves | Encountered a Warlord checkpoint 24616 | -4/Upper Caves | Learned location of 1 exit from Factory 24823 | -4/Upper Caves | Discovered new exit (range 19) 25180 | -4/Upper Caves | Entered Zhirov 25180 | -4/Zhirov | Discovered new exit (range 3) 25198 | -4/Zhirov | Met Zhirov 25219 | -4/Zhirov | Learned location of Testing (-2) 25224 | -4/Zhirov | Zhirov requested help retrieving the SGEMP Prototype 25247 | -4/Zhirov | Found Alien Artifact 25247 | -4/Zhirov | Identified Integrated Reactor 25247 | -4/Zhirov | Installed Integrated Reactor, increased core energy generation (+10) 25296 | -4/Zhirov | Entered Proximity Caves 25320 | -3/Proximity Caves | Reached level 28 25329 | -3/Proximity Caves | Attracted the attention of an 0b10 outpost 25362 | -3/Proximity Caves | Destroyed 9 combat bots 25459 | -3/Proximity Caves | Destroyed 7 combat bots 25755 | -3/Proximity Caves | Discovered new exit (range 16) 26270 | -3/Proximity Caves | Entered Research 26270 | -3/Research | Accompanied by 1 ally 26271 | -3/Research | Identified exit to Quarantine 26272 | -3/Research | Identified exit to Research 26272 | -3/Research | Reached level 29 26274 | -3/Research | Loaded intel: 47 interactive machine locations 26363 | -3/Research | Discovered exit to Research (range 20) 26454 | -3/Research | Garrison activated, responded to threat 26470 | -3/Research | Revision forces began assault on 0b10 26569 | -3/Research | Spotted B-86 Titan 26584 | -3/Research | Destroyed B-86 Titan 26596 | -3/Research | Fabricated A-27 Freighter? 26605 | -3/Research | Destroyed 7 combat bots 26660 | -3/Research | Met up with Revision 17++ 26902 | -3/Research | Fabricated A-27 Freighter? 26970 | -3/Research | Research terminal network offline 27014 | -3/Research | Fabricated A-27 Freighter (x1) 27193 | -3/Research | Spotted Striker 27200 | -3/Research | Destroyed Striker 27221 | -3/Research | Discovered new exit (range 18) 27312 | -3/Research | Spotted B-90 Cyclops 27330 | -3/Research | Destroyed B-90 Cyclops 27411 | -3/Research | Upgraded with Utility slot (x1) 27475 | -3/Research | Spotted Executioner 27475 | -3/Research | Destroyed Executioner 27480 | -3/Research | Spotted Striker 27490 | -3/Research | Destroyed Striker 27521 | -3/Research | Found Prototype Processor 27521 | -3/Research | Identified Exp. Targeting Computer 27523 | -3/Research | Found Prototype Processor 27523 | -3/Research | Identified Exp. Core Analyzer 27533 | -3/Research | Found Prototype Device 27533 | -3/Research | Identified Adv. Kinecellerator 27601 | -3/Research | Spotted Executioner 27601 | -3/Research | Destroyed Executioner 27605 | -3/Research | Spotted Striker 27606 | -3/Research | Destroyed Striker 27872 | -3/Research | Spotted Striker 27886 | -3/Research | Destroyed Striker 27897 | -3/Research | Reached level 30 27998 | -3/Research | Spotted Executioner 28005 | -3/Research | Spotted Striker 28012 | -3/Research | Destroyed Striker 28013 | -3/Research | Destroyed Executioner 28079 | -3/Research | Spotted Striker 28095 | -3/Research | Destroyed Striker 28128 | -3/Research | Destroyed 7 combat bots 28272 | -3/Research | Entered Quarantine 28272 | -3/Quarantine | Accompanied by 1 ally 28631 | -3/Quarantine | Spotted Alpha 7 28640 | -3/Quarantine | Destroyed Alpha 7 28653 | -3/Quarantine | Upgraded with Weapon slot (x1) 28657 | -3/Quarantine | Found Alien Launcher 28657 | -3/Quarantine | Identified Sigix Terminator 28828 | -3/Quarantine | Garrison activated, responded to threat 28829 | -3/Quarantine | Scanned by Researcher 29054 | -3/Quarantine | First assault squad dispatched 29154 | -3/Quarantine | Destroyed 8 combat bots 29202 | -3/Quarantine | Spotted Fortress 29249 | -3/Quarantine | Destroyed Fortress 29267 | -3/Quarantine | Found Prototype Protection 29267 | -3/Quarantine | Identified Centrium Heavy Armor Plating 29475 | -3/Quarantine | Discovered new exit (range 10) 29774 | -3/Quarantine | Met incapacitated Sigix Warrior 29774 | -3/Quarantine | Lockdown squad dispatched 29777 | -3/Quarantine | Acquired the access code to the Sigix quarantine chamber 29779 | -3/Quarantine | Unlocked Sigix quarantine chamber 29783 | -3/Quarantine | Found Sigix Containment Pod 30001 | -3/Quarantine | Entered Section 7 30003 | -3/Section 7 | Reached level 31 30096 | -3/Section 7 | Garrison activated, responded to threat 30155 | -3/Section 7 | Discovered exit to Research (range 21) 30178 | -3/Section 7 | Spotted S7 Guard 30187 | -3/Section 7 | Destroyed S7 Guard 30209 | -3/Section 7 | Found Alien Artifact 30209 | -3/Section 7 | Identified Navigation Efficiency Matrix 30209 | -3/Section 7 | Installed Navigation Efficiency Matrix, process failed with unexpected side effects 30299 | -3/Section 7 | Central database locked down 30302 | -3/Section 7 | Spotted Alpha 7 30303 | -3/Section 7 | Spotted Alpha 7 30345 | -3/Section 7 | Found Alien Artifact 30345 | -3/Section 7 | Identified Spacefold Activator 30362 | -3/Section 7 | Destroyed Alpha 7 30376 | -3/Section 7 | Destroyed Alpha 7 30418 | -3/Section 7 | Destroyed 8 combat bots 30421 | -3/Section 7 | Spotted B-99 Colossus 30525 | -3/Section 7 | Found Alien Artifact 30525 | -3/Section 7 | Identified LRC Energy Well 30525 | -3/Section 7 | Installed LRC Energy Well, increased energy storage capacity (+250) 30527 | -3/Section 7 | Found LRC Energy Well 30527 | -3/Section 7 | Installed LRC Energy Well, increased energy storage capacity (+250) 30535 | -3/Section 7 | Found LRC Energy Well 30535 | -3/Section 7 | Installed LRC Energy Well, increased energy storage capacity (+250) 30567 | -3/Section 7 | Found Alien Artifact 30567 | -3/Section 7 | Identified Integrated Dissipator 30567 | -3/Section 7 | Installed Integrated Dissipator, increased core heat dissipation (+20) 30627 | -3/Section 7 | Found Alien Artifact 30627 | -3/Section 7 | Identified Integrity Redistributor 30627 | -3/Section 7 | Used Integrity Redistributor, redistributed integrity from core (-40) 30720 | -3/Section 7 | Activated Sigix Exoskeleton 30720 | -3/Section 7 | Unable to understand communications from Sigix Warrior 30726 | -3/Section 7 | Spotted Executioner 30726 | -3/Section 7 | Spotted Executioner 30735 | -3/Section 7 | Destroyed Executioner 30737 | -3/Section 7 | Destroyed Executioner 30831 | -3/Section 7 | Allies destroyed B-99 Colossus 30893 | -3/Section 7 | Destroyed 11 combat bots 30914 | -3/Section 7 | Spotted Executioner 30914 | -3/Section 7 | Spotted Executioner 30919 | -3/Section 7 | Allies destroyed Executioner 30929 | -3/Section 7 | Destroyed Executioner 30993 | -3/Section 7 | Unable to understand communications from Sigix Warrior 31027 | -3/Section 7 | Spotted Striker 31027 | -3/Section 7 | Spotted Striker 31028 | -3/Section 7 | Entered Research 31028 | -2/Research | Accompanied by 1 ally (Sigix Warrior) 31030 | -2/Research | Reached level 32 31038 | -2/Research | Identified exit to Access 31038 | -2/Research | Identified exit to Testing 31047 | -2/Research | Destroyed 15 combat bots 31156 | -2/Research | Entered Access 31156 | -1/Access | Accompanied by 1 ally (Sigix Warrior) 31158 | -1/Access | Reached level 33 31261 | -1/Access | Reached level 34 31335 | -1/Access | Unable to understand communications from Sigix Warrior 31347 | -1/Access | Spotted Executioner 31363 | -1/Access | Destroyed Executioner 31384 | -1/Access | Destroyed 8 combat bots 31428 | -1/Access | Reached level 35 31444 | -1/Access | Destroyed 7 combat bots 31501 | -1/Access | Destroyed 11 combat bots 31503 | -1/Access | Spotted B-99 Colossus 31518 | -1/Access | Destroyed B-99 Colossus 31521 | -1/Access | Unable to understand communications from Sigix Warrior 31579 | -1/Access | Spotted Striker 31579 | -1/Access | Spotted Executioner 31581 | -1/Access | Energy Cycler disabled 31582 | -1/Access | Destroyed Executioner 31583 | -1/Access | Destroyed Striker 31589 | -1/Access | Upgraded with Utility slot (x1) 31589 | -1/Access | Upgraded with Propulsion slot (x1) 31690 | -1/Access | Reached level 36 31705 | -1/Access | Discovered new exit (range 20) 31751 | -1/Access | Entered Command 31751 | -1/Command | Accompanied by 1 ally (Sigix Warrior) 31977 | -1/Command | High security lockdown imminent 32017 | -1/Command | Destroyed 11 combat bots 32051 | -1/Command | Fired Sigix Terminator 32051 | -1/Command | Reached level 37 32051 | -1/Command | MAIN.C activated Command garrisons 32052 | -1/Command | Unable to understand communications from Sigix Warrior 32055 | -1/Command | Core integrity fell below 50% 32061 | -1/Command | Core integrity fell below 20% 32065 | -1/Command | Spotted Striker 32065 | -1/Command | Spotted Striker 32074 | -1/Command | Spotted Alpha 7 32074 | -1/Command | Spotted Executioner 32075 | -1/Command | Spotted Executioner 32075 | -1/Command | Spotted Executioner 32081 | -1/Command | Spotted Alpha 7 32082 | -1/Command | Destroyed Striker 32100 | -1/Command | Destroyed Executioner 32105 | -1/Command | Destroyed Executioner 32108 | -1/Command | Destroyed Alpha 7 32119 | -1/Command | Spotted B-99 Colossus 32145 | -1/Command | Spotted B-99 Colossus 32152 | -1/Command | Destroyed B-99 Colossus 32174 | -1/Command | Reached level 38 32195 | -1/Command | Destroyed 112 combat bots 32292 | -1/Command | Discovered new exit (range 4) 32322 | -1/Command | Destroyed 15 combat bots 32449 | -1/Command | Destroyed 10 combat bots 32457 | -1/Command | Destroyed by P-80 Master with Gamma Rifle Last Messages --------------- 32446_ R-10 Processor collects Prototype Reactor. 32448_ L-61 Swordsman destroyed. 32449_ Protomatter-4 decays. 32450_ > ,L6DRX/HEIK FWPG1AXUNXB%5G S&JG72A 32450_ R-10 Processor collects Cmb. Antigrav System. 32450_ Slug penetrates B-74 Champion. 32450_ Slug penetrates D-83 Annihilator. 32452_ Navigation matrix triggers involuntary quantum shift. 32452_ Slug penetrates Repair Station. 32452_ Penetrated by Slug. 32454_ Repair Station disabled. 32454_ Backup Propulsion VII tumbles out of repair station. 32454_ Backup Power VII tumbles out of repair station. 32454_ G-73 Enforcer destroyed. 32455_ Penetrated by Slug. Map ----- +----------------------------------------------------+ | # = % "[%*=##?????# #???????????#%!!= | | " !%=####??# ###?????????#^^![ | | " !%=#=!### "#????????##%^^| | | " " " " ![*!=%!! ##????????#|^^^^ | | " " *![!!]! "#????????##^=!! | | " " " " %##"#### ##????????# ^[ ^ | | " """ "" " ##############???????## ^ ^ | | " " " ## ! #???????# ^ | | " " " "# #???????## ^^^ | | " " " "# "" "" ! #???????# ^ | | " " " "# ""R"" #????##### ^^ | | " " " "" """" #????#" | | " " " "#! #????## | | """""""""" "" "# =%= #?????# ^^ ^ | | " " " " # " ####+###=+%##?????# | | " " " " " =%=[####????# | | " """" " # " =%=* =! #????# ^ "" | | " ???# # #####"#[!%!!]#????# "< | | ??"""""" ??????? ;##+###########= %%#????# ^ | | ??????????????????# #???#* #????# ^ | | ??????????????????# #???# #????# ^ | | ??????????????????#% """" #???#= #????# | | ??????????????????# ""R""h!#???#% #????# | | ??????????????????# "" "%*!#???#*####????######## | | ??????????????????# ===#???# #??????????????? | | ??????????????????# @ #???# #??????????????? | | ??????????????????# #???# #??????????????? | | ??????????????????#########p#???# ??????????????? | | ??????????????????????????# #???# ??????????????? | | ???????????????????????####/##### ??????????????? | | ???????????????????????# ## ??????????????? | | ???????????????????????#= ## ??????????????? | | ???????????????????????# ""## ??????????????? | | ???????????????????????# ""## ?????????????? | | ???????????????????????# ""#? ?????????????? | | ???????????????????????# T#? ?????????????? | | ???????????????????????# ""#? ?????????????? | | ???????????????????????# ""#? ?????????????? | | ???????????????????????# "#? ?????????????? | | ????????????????#####??# #? ????????????? | | ??????????#?????# #??# % #? ????????????? | | ????# ### ### #####""###### ?????? | | / ?????? | | / ?????? | | / ""???????? | | ? / ""???????? | | ? / "???????? | | ??### ### ### #####/################???????? | | ????# ???# ??# #??# #???????????????? | | ????#?????###???#####??# #???????????????? | +----------------------------------------------------+ Best States ------------- Heat Dissipation 126 Energy Generation 97 Energy Capacity 1600 Matter Stores 300 Matter Capacity 300 Sight Range 19 Robot Scan Range 10 Terrain Scan Range 24 Terrain Scan Density 610 Additional Mass Support 12 EM Shielding 4 Armor Coverage 600 Resistance: KI 35 Resistance: TH 35 Resistance: EX 35 Resistance: EM 20 Resistance: I 20 Resistance: S 20 Resistance: P 20 Utility Shielding 33 Evasion (%) 63 Core Analysis 8 Particle Charging 32 Offensive Hacking 40 Defensive Hacking 20 Authchip Count 3 Item Schematics ----------------- Combat Drone Bay | -6/Data Miner | Free Lgt. Regenerative Plating | -6/Data Miner | Free Exp. Heat Sink | -6/Data Miner | Free Myomer Leg | -6/Data Miner | Free Hvy. Gatling Laser | -6/Data Miner | Free Enh. Armored Leg | -6/Data Miner | Free Adv. Cryofiber Web | -6/Data Miner | Free Railgun | -6/Data Miner | Free Imp. Transmission Jammer | -6/Data Miner | Free Quantum Capacitor | -6/Data Miner | Free Q-thruster | -6/Data Miner | Free Assault Drone Bay | -4/Zhirov | Free Exp. Optical Array | -4/Zhirov | Free Imp. Arc Thrower | -4/Zhirov | Free Exp. Thermal Shield | -3/Quarantine | Archive Cmb. Antigrav System | -3/Section 7 | Hacked Cld. Impulse Thruster | -3/Section 7 | Archive Hvy. Dispersion Rifle | -3/Section 7 | Archive Com. Mass Driver | -3/Section 7 | Archive Robot Schematics ------------------ P-60 Hacker | -6/Factory | Hacked P-70 Sage | -6/Factory | Hacked R-10 Processor | -6/Data Miner | Free E-15 Imp | -6/Data Miner | Free I-47 Archangel | -6/Data Miner | Free X-67 Chaingunner | -6/Data Miner | Free G-67 Veteran | -6/Data Miner | Free H-66 Slayer | -6/Data Miner | Free M-30 Cleanser | -6/Data Miner | Free A-27 Freighter | -3/Research | Hacked Fabricated ------------ P-60 Hacker | x2 | -6/Factory | Authchip P-60 Hacker | x2 | -6/Factory | Authchip P-60 Hacker | x2 | -6/Factory | Authchip P-70 Sage | x2 | -6/Factory P-70 Sage | x2 | -6/Factory X-67 Chaingunner | x2 | -5/Factory A-27 Freighter | x1 | -3/Research A-27 Freighter | x1 | -3/Research A-27 Freighter | x1 | -3/Research Alien Tech Used ----------------- Dimensional Node Initializer Integrated Reactor Sigix Terminator Navigation Efficiency Matrix Spacefold Activator LRC Energy Well Integrated Dissipator Integrity Redistributor Achievements -------------- Everyone Must Die Challenges ------------ None RPGLIKE | -11 -10 -10 -10 -9 -9 -6 -6 -6 -6 -5 -5 -5 -5 -5 -4 -4 -4 -4 -3 -3 -3 -3 -2 -1 -1 --------- Run | Yrd Mat Min Sub Rec Scr Fac Low Low Dat Pro Fac Gar Ext Cet Fac Upp Upp Zhi Pro Res Qua Sec Res Acc Com Levels Raised 37 | . 3 1 1 1 1 10 1 . . 2 2 1 . . 3 . . . 1 2 . 1 1 4 2 XP Earned 59727 | 4000 5748 1192 963 2450 604 15071 1018 762 220 3104 3348 197 696 358 3287 471 391 105 1493 2262 1039 1479 1106 5152 3211 XP Spent 59430 | 2000 2350 3600 . 4200 2350 8700 . 800 . . 9600 . . . 7070 . . . . 2300 3280 . . 4000 9180 Upgrades 123 | 4 6 14 . 7 3 14 . 1 . . 23 . . . 9 . . . . 1 5 . . 2 34 Power Slot 2 | 1 . . . . . . . . . . 1 . . . . . . . . . . . . . . Propulsion Slot 4 | 1 . . . . 1 . . . . . . . . . 1 . . . . . . . . 1 . Utility Slot 8 | 1 1 1 . 1 . 1 . . . . 1 . . . . . . . . 1 . . . 1 . Weapon Slot 6 | 1 . . . . 1 1 . . . . 1 . . . 1 . . . . . 1 . . . . Core Integrity 42 | . . . . . . . . . . . 6 . . . . . . . . . 2 . . . 34 Heat Dissipation 9 | . . . . . . 6 . . . . . . . . 3 . . . . . . . . . . Energy Generation 2 | . . . . . . . . . . . 2 . . . . . . . . . . . . . . Mass Support 2 | . . . . 1 . . . . . . . . . . 1 . . . . . . . . . . Inventory Capacity 5 | . 1 . . 1 1 1 . . . . 1 . . . . . . . . . . . . . . Sight Range 3 | . . . . . . . . . . . 3 . . . . . . . . . . . . . . Sensor Range 5 | . . . . . . . . . . . 5 . . . . . . . . . . . . . . Terrain Scan Density 6 | . . 6 . . . . . . . . . . . . . . . . . . . . . . . Ranged Accuracy 6 | . . . . 4 . . . 1 . . 1 . . . . . . . . . . . . . . Hack Attack % 6 | . 2 . . . . 3 . . . . . . . . 1 . . . . . . . . . . Hack Defense % 4 | . 2 . . . . 2 . . . . . . . . . . . . . . . . . . . KI Resistance % 3 | . . 2 . . . . . . . . . . . . . . . . . . 1 . . . . TH Resistance % 3 | . . 2 . . . . . . . . . . . . . . . . . . 1 . . . . EX Resistance % 3 | . . 3 . . . . . . . . . . . . . . . . . . . . . . . TH Damage % 4 | . . . . . . . . . . . 2 . . . 2 . . . . . . . . . . Protomatter Created 14492 | . 435 85 198 210 . 1053 . 185 . 499 1581 7 476 128 1468 432 323 . 610 1262 891 1202 289 1446 1712 Integrity Restored 16616 | . 596 207 720 454 . 1301 270 451 . 621 2712 . 103 275 1179 776 270 . 437 1664 1459 903 563 719 936 Core 10619 | . 437 190 720 207 . 866 270 176 . 230 1610 . 67 165 584 423 142 . 270 852 949 819 287 504 851 Parts 5997 | . 159 17 . 247 . 435 . 275 . 391 1102 . 36 110 595 353 128 . 167 812 510 84 276 215 85 Protomatter Decayed 12486 | . 153 39 42 53 . 1105 15 49 . 339 503 7 460 134 904 151 263 . 364 4761 277 550 4 1328 985 Game ------ Seed HoverImprinterCutter Manual? 0 Play Time 05:53:57 Cumulative 153.7 hours Start 2024.10.11 @ 18:20:16 End 2024.10.13 @ 09:06:33 Sessions 7 Manual Loads 0 Difficulty Adventurer Special Mode Winter2019/RPGLIKE Game No. 82 Rogue 0 Adventurer 82 Explorer 0 Win Type - Total 6 Types 2/0/2/2/0/0/0/0/0 Lore% 67 Gallery% 60 Achievement% 72 Wizard Run 0 Options --------- Layout 2 ASCII 0 Keyboard 0 Movement Numpad Keybinds 0 Fullscreen 2 Font 24/Smallcaps Map View 50x44 Zoom Use 0% Tactical HUD 1 Map Filters NONE Filters NONE Steam 1 RUN: eb9b8b7f-ed6e-42d8-9e2e-3917cd70fddc